bitfinex/quotes_SOLUSD_20250612
["timestamp","ask_amount","ask_price","bid_price","bid_amount"]
[1749699554154,32.24579808,160.11,160.08,8.32219]
[1749699554327,32.24579808,160.11,160.07,14.08219]
[1749699554650,26.0,160.11,160.09,8.32219]
[1749699554847,26.0,160.1,160.09,8.32219]
[1749699556240,32.24537578,160.12,160.09,8.32219]
[1749699557331,26.0,160.1,160.09,8.32219]
[1749699558224,26.0,160.12,160.1,8.32219]
[1749699558423,32.24558,160.12,160.1,8.32219]
[1749699558923,26.0,160.12,160.1,8.32219]
[1749699559131,26.0,160.11,160.1,8.32219]
[1749699560251,32.24534908,160.12,160.1,8.32219]
[1749699560456,32.24534908,160.12,160.07,5.76]
[1749699560457,0.28432314,160.11,160.07,8.32219]
[1749699560757,0.28432314,160.11,160.05,8.32219]
[1749699560942,19.07613357,160.11,160.05,8.32219]
[1749699562066,19.07613357,160.11,160.06,8.32219]
[1749699562234,19.07613357,160.11,160.05,8.32219]
[1749699562655,6.24609618,160.1,160.08,8.32219]
[1749699562855,6.24609618,160.1,160.06,8.32219]
[1749699563035,6.24609618,160.1,160.05,8.32219]
[1749699565963,6.24609618,160.1,160.06,8.32219]
[1749699566263,6.24609618,160.1,160.05,8.32219]
[1749699566858,6.24609618,160.1,160.08,8.32219]
[1749699567048,6.24609618,160.1,160.05,8.32219]
[1749699567251,6.24609618,160.1,160.08,8.32219]
[1749699567768,6.24609618,160.1,160.05,8.32219]
[1749699568067,6.24609618,160.1,160.07,8.32219]
[1749699568367,9.34975424,160.1,160.08,8.32219]
[1749699569151,6.24609618,160.1,160.08,8.32219]
[1749699569608,6.24609618,160.1,160.07,8.32219]
[1749699569778,6.24609618,160.1,160.05,8.32219]
[1749699570084,6.24609618,160.1,160.08,8.32219]
[1749699570573,6.24609618,160.1,160.05,8.32219]
[1749699570756,6.24609618,160.1,160.08,8.32219]
[1749699570938,6.24609618,160.1,160.05,8.32219]
[1749699571142,6.24609618,160.1,160.08,8.32219]
[1749699571339,9.41218153,160.1,160.08,8.32219]
[1749699571750,6.24609618,160.1,160.08,8.32219]
[1749699571953,6.24609618,160.1,160.05,8.32219]
[1749699572643,6.24609618,160.1,160.06,8.32219]
[1749699572844,6.24609618,160.1,160.05,8.32219]
[1749699573859,26.0,160.08,160.07,8.32219]
[1749699574263,26.0,160.08,160.05,8.32219]
[1749699574468,26.0,160.08,160.07,8.32219]
[1749699575075,0.28432314,160.11,160.07,8.32219]
[1749699575276,26.0,160.1,160.08,8.32219]
[1749699575768,32.2453587,160.12,160.08,8.32219]
[1749699577471,26.0,160.12,160.08,8.32219]
[1749699577878,26.0,160.12,160.09,8.32219]
[1749699578067,26.0,160.11,160.09,8.32219]
[1749699581062,6.52821676,160.16,160.11,8.32219]
[1749699581363,26.0,160.13,160.11,8.32219]
[1749699581566,26.0,160.13,160.1,8.32219]
[1749699581768,26.0,160.13,160.11,8.32219]
[1749699582160,0.14216157,160.17,160.09,7.7128]
[1749699582161,6.38565651,160.17,160.12,8.32219]
[1749699582360,6.38565651,160.17,160.13,8.32219]
[1749699582581,26.0,160.14,160.13,8.32219]
[1749699583159,14.13811193,160.18,160.09,33.6928]
[1749699583160,4.6477528,160.18,160.14,8.32219]
[1749699583366,4.6477528,160.19,160.16,8.32219]
[1749699583679,26.0,160.17,160.16,8.32219]
[1749699583853,4.6477528,160.19,160.16,8.32219]
[1749699584059,4.6477528,160.19,160.17,8.32219]
[1749699584259,0.14216157,160.24,160.18,8.32219]
[1749699584260,5.79506485,160.24,160.18,8.32219]
[1749699584570,26.0,160.21,160.19,8.32219]
[1749699585475,26.0,160.2,160.19,8.32219]
[1749699586595,4.65153343,160.24,160.2,8.32219]
[1749699586796,4.65153343,160.24,160.21,8.32219]
[1749699587100,26.0,160.24,160.21,8.32219]
[1749699587262,0.14216157,160.26,160.21,8.32219]
[1749699587263,26.0,160.23,160.21,8.32219]
[1749699588266,26.0,160.22,160.21,8.32219]
[1749699597424,26.0,160.2,160.19,8.32219]
[1749699597810,26.0,160.2,160.17,8.32219]
[1749699598115,26.28432314,160.21,160.15,8.32219]
[1749699598304,26.28432314,160.21,160.13,5.76]
[1749699598305,0.28432314,160.19,160.14,8.32219]
[1749699598497,26.0,160.17,160.14,8.32219]
[1749699599206,32.24348929,160.17,160.14,8.32219]
[1749699599426,32.24348929,160.17,160.13,5.76]
[1749699599727,0.28432314,160.16,160.13,5.76]
[1749699601321,6.24414611,160.15,160.13,5.76]
[1749699606907,6.24343284,160.17,160.13,5.76]
[1749699607107,26.0,160.17,160.14,8.32219]
[1749699608531,32.24361926,160.17,160.14,8.32219]
[1749699612537,32.24361926,160.17,160.13,14.08219]
[1749699613425,0.28432314,160.16,160.13,5.76]
[1749699613609,26.0,160.13,160.08,8.32219]
[1749699613811,26.0,160.13,160.1,8.32219]
[1749699614836,6.24531601,160.12,160.1,8.32219]
[1749699615138,6.24531601,160.12,160.08,8.32219]
[1749699615428,6.24531601,160.12,160.07,7.9967]
[1749699615429,6.24531601,160.12,160.07,16.31889]
[1749699615634,6.24531601,160.12,160.09,8.32219]
[1749699615929,6.24531601,160.12,160.1,8.32219]
[1749699617521,6.24531601,160.12,160.08,8.32219]
[1749699617724,6.24531601,160.12,160.09,8.32219]
[1749699617922,6.24531601,160.12,160.07,16.31889]
[1749699618324,6.24531601,160.12,160.1,8.32219]
[1749699619046,6.24531601,160.12,160.08,8.32219]
[1749699619424,26.0,160.1,160.09,8.32219]
[1749699620938,6.24531601,160.12,160.09,8.32219]
[1749699621125,26.0,160.1,160.09,8.32219]
[1749699624854,26.0,160.11,160.09,8.32219]
[1749699627562,32.24499704,160.13,160.09,8.32219]
[1749699629654,26.0,160.11,160.09,8.32219]
[1749699629848,1.5088,160.17,160.12,8.32219]
[1749699630163,6.24233422,160.2,160.15,8.32219]
[1749699630463,9.98609,160.21,160.17,8.32219]
[1749699630464,6.24190902,160.21,160.17,8.32219]
[1749699630646,31.26367599,160.23,160.17,8.32219]
[1749699630846,31.26367599,160.23,160.18,8.32219]
[1749699631052,26.0,160.2,160.18,8.32219]
[1749699631356,0.28432314,160.22,160.18,8.32219]
[1749699631557,26.0,160.2,160.18,8.32219]
[1749699631758,26.0,160.19,160.18,8.32219]
[1749699632165,26.0,160.19,160.16,14.06219]
[1749699632344,26.0,160.19,160.18,8.32219]
[1749699633349,26.0,160.2,160.18,8.32219]
[1749699633561,26.0,160.19,160.18,8.32219]
[1749699633767,31.2633698,160.23,160.18,8.32219]
[1749699633971,26.0,160.2,160.19,8.32219]
[1749699636663,26.0,160.2,160.17,8.32219]
[1749699636859,0.28432314,160.19,160.16,5.74]
[1749699637345,0.28432314,160.19,160.16,14.06219]
[1749699638075,6.52693902,160.19,160.16,14.06219]
[1749699638280,6.52693902,160.19,160.16,5.74]
[1749699638771,0.28432314,160.17,160.16,5.74]
[1749699639163,26.0,160.15,160.12,8.32219]
[1749699639347,26.0,160.15,160.09,39.6182]
[1749699639348,26.0,160.15,160.13,8.32219]
[1749699639974,26.0,160.14,160.13,8.32219]
[1749699641278,0.28432314,160.17,160.11,8.32219]
[1749699641279,32.24431349,160.15,160.11,8.32219]
[1749699641471,32.24431349,160.15,160.12,8.32219]
[1749699641669,32.24431349,160.15,160.11,8.32219]
[1749699641884,32.24431349,160.15,160.09,14.06219]
[1749699641885,19.07613357,160.14,160.09,14.06219]
[1749699642058,26.0,160.11,160.1,8.32219]
[1749699643677,6.24532779,160.12,160.09,5.74]
[1749699643859,45.07613357,160.14,160.09,14.06219]
[1749699643860,6.24504197,160.13,160.09,14.06219]
[1749699644063,26.0,160.11,160.1,8.32219]
[1749699645484,51.32075949,160.14,160.1,8.32219]
[1749699645663,26.0,160.11,160.1,8.32219]
[1749699646077,32.52894906,160.14,160.1,8.32219]
[1749699646379,26.0,160.11,160.1,8.32219]
[1749699646777,26.0,160.11,160.09,5.74]
[1749699646986,26.0,160.11,160.1,8.32219]
[1749699648460,26.0,160.11,160.09,14.06219]
[1749699648660,26.0,160.11,160.1,8.32219]
[1749699650198,26.0,160.14,160.1,8.32219]
[1749699651184,26.0,160.14,160.09,14.06219]
[1749699651486,26.0,160.14,160.1,8.32219]
[1749699651669,26.0,160.12,160.1,8.32219]
[1749699652485,26.0,160.14,160.1,8.32219]
[1749699652696,26.0,160.12,160.1,8.32219]
[1749699653265,10.89419492,160.16,160.1,8.32219]
[1749699654696,26.0,160.13,160.1,8.32219]
[1749699655471,10.89419492,160.16,160.1,8.32219]
[1749699655472,26.0,160.12,160.1,8.32219]
[1749699657194,26.0,160.12,160.11,8.32219]
[1749699660496,4.65032665,160.16,160.14,8.32219]
[1749699663105,0.14216157,160.13,160.1,8.32219]
[1749699663282,18.933972,160.14,160.11,8.32219]
[1749699663283,4.93520432,160.14,160.11,8.32219]
[1749699663589,0.28432314,160.14,160.11,8.32219]
[1749699664605,6.24492599,160.13,160.11,8.32219]
[1749699669510,26.0,160.14,160.12,8.32219]
[1749699669892,26.0,160.14,160.13,8.32219]
[1749699671912,30.65400401,160.16,160.15,8.32219]
[1749699672220,26.0,160.16,160.15,8.32219]
[1749699673512,32.24375624,160.16,160.15,8.32219]
[1749699673720,0.28432314,160.15,160.12,8.32219]
[1749699673909,0.28432314,160.15,160.11,8.32219]
[1749699674221,0.28432314,160.15,160.12,8.32219]
[1749699674603,26.28432314,160.15,160.11,8.32219]
[1749699674791,26.0,160.13,160.12,8.32219]
[1749699675129,26.0,160.13,160.11,8.32219]
[1749699675627,6.24531601,160.12,160.11,8.32219]
[1749699676418,6.24531601,160.12,160.1,8.32219]
[1749699676808,6.24531601,160.12,160.11,8.32219]
[1749699677210,6.24531601,160.12,160.09,5.74]
[1749699677396,6.24531601,160.12,160.1,8.32219]
[1749699679092,26.28432314,160.11,160.09,5.74]
[1749699679315,26.0,160.1,160.09,14.06219]
[1749699679502,26.0,160.12,160.11,8.32219]
[1749699680420,26.0,160.12,160.1,8.32219]
[1749699680608,6.52900892,160.14,160.1,8.32219]
[1749699680609,26.0,160.11,160.1,8.32219]
[1749699682817,30.65411645,160.11,160.1,8.32219]
[1749699682995,26.0,160.11,160.1,8.32219]
[1749699683193,30.65411645,160.11,160.1,8.32219]
[1749699683397,26.0,160.11,160.1,8.32219]
[1749699683599,30.65411645,160.11,160.1,8.32219]
[1749699683808,26.0,160.11,160.1,8.32219]
[1749699684020,30.65411645,160.11,160.1,8.32219]
[1749699684223,26.0,160.11,160.1,8.32219]
[1749699684405,30.65411645,160.11,160.1,8.32219]
[1749699684705,26.0,160.11,160.1,8.32219]
[1749699684905,30.65411645,160.11,160.1,8.32219]
[1749699685221,26.0,160.11,160.1,8.32219]
[1749699685404,30.65411645,160.11,160.1,8.32219]
[1749699685598,26.0,160.11,160.1,8.32219]
[1749699685822,30.65411645,160.11,160.1,8.32219]
[1749699686129,26.0,160.11,160.1,8.32219]
[1749699686796,30.67266917,160.11,160.1,8.32219]
[1749699686995,26.0,160.11,160.1,8.32219]
[1749699687225,30.67266917,160.11,160.1,8.32219]
[1749699687431,26.0,160.11,160.1,8.32219]
[1749699687610,30.67266917,160.11,160.1,8.32219]
[1749699687810,30.67266917,160.12,160.1,8.32219]
[1749699688008,30.67266917,160.11,160.09,14.06219]
[1749699688216,4.67266917,160.1,160.09,14.06219]
[1749699689106,26.0,160.11,160.1,8.32219]
[1749699689804,30.67287869,160.11,160.1,8.32219]
[1749699690003,26.0,160.11,160.1,8.32219]
[1749699690202,30.67287869,160.11,160.1,8.32219]
[1749699690425,26.0,160.11,160.1,8.32219]
[1749699690621,30.67287869,160.11,160.1,8.32219]
[1749699690810,26.0,160.11,160.1,8.32219]
[1749699691003,4.67287869,160.11,160.1,8.32219]
[1749699692023,30.67287869,160.11,160.1,8.32219]
[1749699692208,26.0,160.11,160.1,8.32219]
[1749699692411,30.67287869,160.11,160.1,8.32219]
[1749699692609,26.0,160.11,160.1,8.32219]
[1749699692810,30.67287869,160.11,160.1,8.32219]
[1749699693117,26.0,160.11,160.1,8.32219]
[1749699693324,30.67287869,160.11,160.1,8.32219]
[1749699693522,26.0,160.11,160.1,8.32219]
[1749699693724,30.67287869,160.11,160.1,8.32219]
[1749699694027,26.0,160.11,160.1,8.32219]
[1749699694207,30.67287869,160.11,160.1,8.32219]
[1749699694408,26.0,160.11,160.1,8.32219]
[1749699694608,30.67287869,160.11,160.1,8.32219]
[1749699695407,26.0,160.11,160.1,8.32219]
[1749699695606,30.67287869,160.11,160.1,8.32219]
[1749699695807,26.0,160.11,160.1,8.32219]
[1749699696007,30.67287869,160.11,160.1,8.32219]
[1749699696531,12.03857028,160.17,160.14,8.32219]
[1749699696734,4.67218076,160.16,160.15,8.32219]
[1749699697116,4.67099855,160.19,160.18,8.32219]
[1749699697319,4.67099855,160.19,160.16,8.32219]
[1749699697517,30.67099855,160.18,160.17,8.32219]
[1749699697824,26.0,160.18,160.17,8.32219]
[1749699698017,10.9139752,160.18,160.15,8.32219]
[1749699698216,4.67099855,160.17,160.16,8.32219]
[1749699698418,4.67099855,160.17,160.15,8.32219]
[1749699698619,26.0,160.16,160.14,8.32219]
[1749699698916,26.0,160.16,160.15,8.32219]
[1749699699133,30.67099855,160.16,160.15,8.32219]
[1749699699328,26.0,160.16,160.15,8.32219]
[1749699699540,30.67099855,160.16,160.14,8.32219]
[1749699699715,30.67099855,160.16,160.13,8.32219]
[1749699699917,6.24453603,160.14,160.13,8.32219]
[1749699700221,6.24453603,160.14,160.12,8.32219]
[1749699700535,10.91553458,160.14,160.12,8.32219]
[1749699700709,6.24453603,160.14,160.12,8.32219]
[1749699700909,10.91553458,160.14,160.12,8.32219]
[1749699701134,6.24453603,160.14,160.12,8.32219]
[1749699701437,10.91553458,160.14,160.13,8.32219]
[1749699701609,6.24453603,160.14,160.13,8.32219]
[1749699701811,10.91553458,160.14,160.13,8.32219]
[1749699702027,6.24453603,160.14,160.13,8.32219]
[1749699702221,10.91553458,160.14,160.13,8.32219]
[1749699702427,6.24453603,160.14,160.12,8.32219]
[1749699702608,10.91553458,160.14,160.13,8.32219]
[1749699702810,6.24453603,160.14,160.13,8.32219]
[1749699703012,4.67099855,160.14,160.13,8.32219]
[1749699703226,4.67099855,160.15,160.14,8.32219]
[1749699703432,30.67099855,160.15,160.14,8.32219]
[1749699703734,26.0,160.15,160.14,8.32219]
[1749699703918,30.67099855,160.15,160.14,8.32219]
[1749699704324,26.0,160.15,160.14,8.32219]
[1749699706742,10.90970396,160.18,160.15,8.32219]
[1749699706924,26.0,160.16,160.15,8.32219]
[1749699708226,30.66667208,160.16,160.15,8.32219]
[1749699708428,36.91042832,160.16,160.15,8.32219]
[1749699708930,32.24375624,160.16,160.15,8.32219]
[1749699709835,36.91042832,160.16,160.15,8.32219]
[1749699710740,32.24375624,160.16,160.15,8.32219]
[1749699711045,26.0,160.16,160.15,8.32219]
[1749699711253,26.0,160.17,160.15,8.32219]
[1749699711436,26.0,160.17,160.16,8.32219]
[1749699712437,26.0,160.16,160.15,8.32219]
[1749699713344,10.9090019,160.2,160.18,8.32219]
[1749699713651,26.0,160.19,160.18,8.32219]
[1749699715446,32.24223569,160.2,160.18,8.32219]
[1749699716155,26.0,160.2,160.18,8.32219]
[1749699720269,32.2422581,160.2,160.18,8.32219]
[1749699720637,32.2422581,160.2,160.1,18.79181043]
[1749699720638,0.28432314,160.19,160.16,8.32219]
[1749699720958,26.0,160.2,160.18,8.32219]
[1749699721453,32.24219897,160.2,160.17,8.32219]
[1749699721637,0.28432314,160.19,160.16,8.32219]
[1749699721959,19.07613357,160.19,160.14,8.32219]
[1749699722161,23.74280565,160.19,160.16,8.32219]
[1749699722359,23.74280565,160.19,160.14,8.32219]
[1749699722867,23.74280565,160.19,160.15,8.32219]
[1749699723039,23.74280565,160.19,160.14,8.32219]
[1749699723242,23.74280565,160.19,160.13,8.32219]
[1749699723464,26.0,160.15,160.14,8.32219]
[1749699724470,26.0,160.15,160.13,8.32219]
[1749699724646,26.0,160.15,160.14,8.32219]
[1749699725739,26.0,160.15,160.13,8.32219]
[1749699725948,26.0,160.14,160.13,8.32219]
[1749699726244,26.0,160.14,160.13,7.54829]
[1749699727286,32.24385312,160.16,160.13,7.54829]
[1749699727641,32.24385312,160.16,160.15,7.54829]
[1749699729464,4.65857599,160.18,160.15,7.54829]
[1749699729649,26.0,160.18,160.17,7.54829]
[1749699729964,26.0,160.17,160.16,7.54829]
[1749699731245,32.24315617,160.18,160.15,7.54829]
[1749699731462,32.24315617,160.18,160.16,7.54829]
[1749699732466,32.24315617,160.18,160.14,7.54829]
[1749699732666,32.24315617,160.18,160.15,7.54829]
[1749699732849,32.24315617,160.18,160.16,7.54829]
[1749699732850,36.89808781,160.18,160.16,7.54829]
[1749699733054,32.24315617,160.18,160.16,7.54829]
[1749699733762,32.24315617,160.18,160.15,7.54829]
[1749699733958,32.24315617,160.18,160.14,7.54829]
[1749699735668,32.24315617,160.18,160.15,7.54829]
[1749699736056,32.24315617,160.18,160.16,7.54829]
[1749699736773,36.90177203,160.18,160.16,7.54829]
[1749699736952,4.65861586,160.17,160.16,7.54829]
[1749699737274,32.24315617,160.18,160.16,7.54829]
[1749699737475,36.90177203,160.18,160.16,7.54829]
[1749699737660,4.65861586,160.17,160.16,7.54829]
[1749699738478,32.24315617,160.18,160.16,7.54829]
[1749699738686,30.65861586,160.18,160.16,7.54829]
[1749699740257,36.90171667,160.18,160.16,7.54829]
[1749699740561,4.65861586,160.17,160.16,7.54829]
[1749699742677,10.90208806,160.17,160.13,7.54829]
[1749699742878,10.90208806,160.17,160.14,7.54829]
[1749699743066,11.1864112,160.17,160.16,7.54829]
[1749699743254,11.1864112,160.17,160.14,7.54829]
[1749699743457,11.1864112,160.17,160.13,7.54829]
[1749699743857,11.1864112,160.17,160.14,7.54829]
[1749699744484,11.1864112,160.17,160.16,7.54829]
[1749699744485,4.942939,160.17,160.16,7.54829]
[1749699744784,4.65861586,160.17,160.16,7.54829]
[1749699748087,26.0,160.18,160.17,7.54829]
[1749699748265,4.65861586,160.18,160.17,7.54829]
[1749699748467,26.0,160.19,160.17,7.54829]
[1749699748682,26.0,160.19,160.18,7.54829]
[1749699748882,30.65861586,160.19,160.18,7.54829]
[1749699749177,26.0,160.19,160.18,7.54829]
[1749699751381,26.0,160.19,160.16,7.54829]
[1749699751563,36.90120278,160.19,160.16,7.54829]
[1749699751763,4.65861586,160.18,160.16,7.54829]
[1749699751973,32.24258692,160.19,160.17,7.54829]
[1749699752368,32.24258692,160.19,160.16,7.54829]
[1749699752567,36.90120278,160.19,160.17,7.54829]
[1749699752861,36.90120278,160.19,160.16,7.54829]
[1749699753887,4.65861586,160.18,160.16,7.54829]
[1749699754185,36.90120278,160.19,160.16,7.54829]
[1749699754361,4.942939,160.18,160.14,7.54829]
[1749699754762,0.28432314,160.16,160.13,7.54829]
[1749699754987,4.942939,160.16,160.13,7.54829]
[1749699755283,0.28432314,160.16,160.13,7.54829]
[1749699755488,4.942939,160.16,160.13,7.54829]
[1749699755669,4.65861586,160.15,160.12,7.54829]
[1749699756067,4.65861586,160.15,160.11,5.7]
[1749699756068,10.90315189,160.14,160.11,13.24829]
[1749699756374,10.90315189,160.14,160.11,5.7]
[1749699756564,26.0,160.12,160.11,5.7]
[1749699756770,26.28432314,160.12,160.11,5.7]
[1749699756994,49.73474943,160.12,160.11,5.7]
[1749699757785,0.28432314,160.11,160.07,7.54829]
[1749699758086,6.24609618,160.1,160.09,7.54829]
[1749699759976,6.5301479,160.11,160.09,7.54829]
[1749699762094,6.5301479,160.11,160.07,7.54829]
[1749699762269,26.0,160.08,160.07,7.54829]
[1749699764485,26.0,160.09,160.08,7.54829]
[1749699765975,26.0,160.11,160.1,7.54829]
[1749699766176,4.64826724,160.14,160.12,7.54829]
[1749699766371,6.24299201,160.18,160.14,7.54829]
[1749699766672,6.24299201,160.18,160.15,7.54829]
[1749699766873,26.0,160.16,160.15,7.54829]
[1749699768186,26.0,160.15,160.14,7.54829]
[1749699768381,6.24346167,160.17,160.15,7.54829]
[1749699768604,26.0,160.16,160.15,7.54829]
[1749699772807,0.28432314,160.15,160.13,7.54829]
[1749699774122,6.52851193,160.15,160.14,7.54829]
[1749699774298,6.52851193,160.15,160.13,7.54829]
[1749699774903,6.52851193,160.15,160.14,7.54829]
[1749699775216,6.52851193,160.15,160.13,7.54829]
[1749699775796,6.52851193,160.15,160.14,7.54829]
[1749699776102,6.52851193,160.15,160.13,7.54829]
[1749699777111,6.52851193,160.15,160.14,7.54829]
[1749699778011,6.52851193,160.15,160.13,7.54829]
[1749699778197,6.52851193,160.15,160.14,7.54829]
[1749699778508,0.28432314,160.15,160.14,7.54829]
[1749699779722,26.0,160.16,160.14,7.54829]
[1749699780810,32.24389099,160.16,160.13,7.54829]
[1749699780996,32.24389099,160.16,160.14,7.54829]
[1749699782420,32.24389099,160.16,160.13,7.54829]
[1749699782612,32.24389099,160.16,160.14,7.54829]
[1749699782915,32.24389099,160.16,160.13,7.54829]
[1749699783423,26.0,160.16,160.14,7.54829]
[1749699784721,0.28432314,160.15,160.12,7.54829]
[1749699784922,0.28432314,160.15,160.09,5.7]
[1749699784923,26.0,160.13,160.11,7.54829]
[1749699785118,26.0,160.12,160.11,7.54829]
[1749699785418,26.28432314,160.12,160.11,7.54829]
[1749699786621,32.52963915,160.12,160.11,7.54829]
[1749699789607,32.52963915,160.12,160.09,13.24829]
[1749699789813,32.52963915,160.12,160.11,9.54829]
[1749699790708,32.52963915,160.12,160.11,2.0]
[1749699790906,51.32144958,160.12,160.11,2.0]
[1749699791315,55.9766187,160.12,160.11,2.0]
[1749699793307,55.9766187,160.12,160.11,0.0072459]
[1749699799108,26.0,160.05,160.04,7.54829]
[1749699801911,32.24804748,160.05,160.04,7.54829]
[1749699802808,32.53237062,160.05,160.04,7.54829]
[1749699808362,149.1,160.11,160.05,7.54829]
[1749699808647,26.0,160.08,160.07,7.54829]
[1749699809023,45.07613357,160.08,160.07,7.54829]
[1749699810241,0.28432314,160.07,160.06,7.54829]
[1749699810738,6.53158996,160.07,160.05,7.54829]
[1749699810920,6.53158996,160.07,160.06,7.54829]
[1749699811342,0.28432314,160.07,160.06,7.54829]
[1749699814230,6.53158996,160.07,160.06,7.54829]
[1749699815745,155.34597228,160.11,160.08,7.54829]
[1749699815949,26.0,160.09,160.08,7.54829]
[1749699816118,26.28432314,160.09,160.08,7.54829]
[1749699817550,0.28432314,160.09,160.08,7.54829]
[1749699819751,0.28432314,160.09,160.01,8.0102]
[1749699819752,26.0,160.08,160.07,7.54829]
[1749699822567,4.65826967,160.1,160.09,7.54829]
[1749699822758,26.0,160.11,160.09,7.54829]
[1749699822961,26.0,160.11,160.1,7.54829]
[1749699825283,4.66281176,160.14,160.13,7.54829]
[1749699825486,4.66281176,160.15,160.12,7.54829]
[1749699825777,26.0,160.13,160.12,7.54829]
[1749699829581,11.1909257,160.16,160.14,7.54829]
[1749699829757,26.0,160.14,160.13,7.54829]
[1749699842590,158.50453516,160.17,160.15,7.54829]
[1749699842591,149.1,160.17,160.15,7.54829]
[1749699842792,175.1,160.17,160.16,7.54829]
[1749699845694,0.28432314,160.21,160.16,7.54829]
[1749699845899,9.33785941,160.23,160.2,7.54829]
[1749699846096,26.0,160.21,160.2,7.54829]
[1749699847287,6.3836541,160.22,160.2,7.54829]
[1749699847499,26.0,160.21,160.2,7.54829]
[1749699848199,26.0,160.2,160.19,7.54829]
[1749699849604,26.0,160.21,160.2,7.54829]
[1749699851798,6.38283627,160.24,160.22,7.54829]
[1749699851992,18.64964886,160.26,160.23,7.54829]
[1749699851993,6.2398918,160.26,160.23,7.54829]
[1749699852198,11.11276604,160.27,160.25,7.54829]
[1749699852505,0.28432314,160.26,160.25,7.54829]
[1749699853292,26.0,160.25,160.24,7.54829]
[1749699861327,0.14216157,160.28,160.24,7.54829]
[1749699861627,26.0,160.27,160.26,7.54829]
[1749699864028,149.1,160.29,160.28,7.54829]
[1749699864230,18.64964886,160.35,160.3,7.54829]
[1749699864422,29.51539084,160.35,160.31,7.54829]
[1749699864732,26.0,160.32,160.31,7.54829]
[1749699865035,24.88600682,160.35,160.31,7.54829]
[1749699865238,29.01385964,160.35,160.31,7.54829]
[1749699865532,26.0,160.32,160.31,7.54829]
[1749699865830,6.23749452,160.33,160.31,7.54829]
[1749699868929,26.0,160.31,160.3,7.54829]
[1749699870324,32.23791404,160.31,160.3,7.54829]
[1749699870637,0.28432314,160.3,160.28,7.54829]
[1749699871646,26.0,160.28,160.27,7.54829]
[1749699872145,26.0,160.27,160.26,7.54829]
[1749699872435,32.23947089,160.27,160.26,7.54829]
[1749699872641,32.23947089,160.27,160.23,6.04]
[1749699872642,32.23947089,160.27,160.25,7.54829]
[1749699872853,0.28432314,160.26,160.24,7.54829]
[1749699873722,0.28432314,160.26,160.23,13.58829]
[1749699873924,26.0,160.24,160.23,6.04]
[1749699874123,26.0,160.24,160.23,13.58829]
[1749699874323,6.09030546,160.27,160.24,7.54829]
[1749699874643,26.0,160.29,160.28,7.54829]
[1749699875653,0.28432314,160.31,160.3,7.54829]
[1749699875825,0.14216157,160.31,160.3,7.54829]
[1749699876026,0.28432314,160.31,160.3,7.54829]
[1749699877844,149.1,160.32,160.3,7.54829]
[1749699878046,175.1,160.32,160.31,7.54829]
[1749699878250,26.0,160.32,160.31,7.54829]
[1749699878552,0.42648471,160.35,160.32,7.54829]
[1749699878742,26.0,160.33,160.32,7.54829]
[1749699879442,0.42648471,160.35,160.33,7.54829]
[1749699879657,26.28432314,160.34,160.33,7.54829]
[1749699880161,26.0,160.33,160.32,7.54829]
[1749699893992,26.0,160.34,160.32,7.54829]
[1749699894282,26.0,160.34,160.33,7.54829]
[1749699894870,32.23674691,160.34,160.33,7.54829]
[1749699895383,26.0,160.34,160.33,7.54829]
[1749699897089,6.23645983,160.35,160.33,7.54829]
[1749699899974,4.99825446,160.36,160.35,7.54829]
[1749699900177,6.23441396,160.4,160.36,7.54829]
[1749699900392,6.23441396,160.4,160.37,7.54829]
[1749699900597,26.0,160.38,160.37,7.54829]
[1749699900778,31.02367901,160.38,160.37,7.54829]